fUSD/lending_fUSD_20240210
["ID","MTS","AMOUNT","RATE_DAILY","PERIOD"]
[313707636,1707600660675,-500.0,0.0003863,30]
[313707637,1707600660684,-500.0,0.0003863,30]
[313707638,1707600660694,-516.81079355,0.0003863,30]
[313707639,1707600660703,-500.0,0.0003863,30]
[313707640,1707600660713,-500.0,0.0003863,30]
[313707641,1707600660724,-500.0,0.0003863,30]
[313707642,1707600660734,-510.48,0.0003863,30]
[313707643,1707600660744,-576.95,0.0003863,30]
[313707644,1707600660754,-500.0,0.0003863,30]
[313707645,1707600660763,-500.0,0.0003863,30]
[313707646,1707600660773,-500.0,0.0003863,30]
[313707647,1707600660782,-500.0,0.0003863,30]
[313707648,1707600660792,-500.0,0.0003863,30]
[313707649,1707600660802,-500.0,0.0003863,30]
[313707650,1707600660811,-500.0,0.0003863,30]
[313707651,1707600660821,-500.0,0.0003863,30]
[313707652,1707600660831,-500.0,0.0003863,30]
[313707653,1707600660840,-1004.34,0.0003863,30]
[313707654,1707600660849,-500.0,0.0003863,30]
[313707655,1707600660860,-500.0,0.0003863,30]
[313707656,1707600660869,-500.0,0.0003863,30]
[313707657,1707600660879,-500.0,0.0003863,30]
[313707658,1707600660889,-500.0,0.0003863,30]
[313707659,1707600660899,-500.0,0.0003863,30]
[313707660,1707600660909,-500.0,0.0003863,30]
[313707661,1707600660919,-974.28,0.0003863,30]
[313707662,1707600660928,-1028.04,0.0003863,30]
[313707663,1707600660937,-500.0,0.0003863,30]
[313707664,1707600660946,-500.0,0.0003863,30]
[313707665,1707600660956,-500.0,0.0003863,30]
[313707666,1707600660965,-500.0,0.0003863,30]
[313707667,1707600660975,-500.0,0.0003863,30]
[313707668,1707600660984,-1248.46,0.0003863,30]
[313707669,1707600660993,-1354.3,0.0003863,30]
[313707670,1707600661003,-500.0,0.0003863,30]
[313707671,1707600661012,-500.0,0.0003863,30]
[313707672,1707600661021,-500.0,0.0003863,30]
[313707673,1707600661030,-500.0,0.0003863,30]
[313707674,1707600661039,-500.0,0.0003863,30]
[313707675,1707600661049,-500.0,0.0003863,30]
[313707676,1707600661059,-2698.96,0.0003863,30]
[313707677,1707600661068,-500.0,0.0003863,30]
[313707678,1707600661077,-500.0,0.0003863,30]
[313707679,1707600661086,-500.0,0.0003863,30]
[313707680,1707600661096,-500.0,0.0003863,30]
[313707681,1707600661105,-773.31,0.0003863,30]
[313707682,1707600661115,-500.0,0.0003863,30]
[313707683,1707600661125,-1020.08,0.0003863,30]
[313707684,1707600661134,-500.0,0.0003863,30]
[313707685,1707600661143,-1468.67,0.0003863,30]
[313707686,1707600661152,-500.0,0.0003863,30]
[313707687,1707600661162,-500.0,0.0003863,30]
[313707688,1707600661171,-500.0,0.0003863,30]
[313707689,1707600661180,-1648.08,0.0003863,30]
[313707690,1707600661190,-500.0,0.0003863,30]
[313707691,1707600661199,-500.0,0.0003863,30]
[313707692,1707600661209,-500.0,0.0003863,30]
[313707693,1707600661219,-500.0,0.0003863,30]
[313707694,1707600661229,-1006.27,0.0003863,30]
[313707695,1707600661239,-500.0,0.0003863,30]
[313707696,1707600661248,-707.87,0.0003863,30]
[313707697,1707600661259,-500.0,0.0003863,30]
[313707698,1707600661271,-500.0,0.0003863,30]
[313707699,1707600661281,-500.0,0.0003863,30]
[313707700,1707600661309,-835.37,0.0003863,30]
[313707701,1707600661321,-500.0,0.0003863,30]
[313707702,1707600661331,-500.0,0.0003863,30]
[313707703,1707600661340,-585.55,0.0003863,30]
[313707704,1707600661352,-500.0,0.0003863,30]
[313707705,1707600661362,-615.65,0.0003863,30]
[313707706,1707600661373,-500.0,0.0003863,30]
[313707707,1707600661383,-500.0,0.0003863,30]
[313707708,1707600661394,-500.0,0.0003863,30]
[313707709,1707600661404,-500.0,0.0003863,30]
[313707710,1707600661414,-710.1,0.0003863,30]
[313707711,1707600661424,-500.0,0.0003863,30]
[313707712,1707600661433,-500.0,0.0003863,30]
[313707713,1707600661443,-500.0,0.0003863,30]
[313707714,1707600661452,-637.4,0.0003863,30]
[313707715,1707600661461,-500.0,0.0003863,30]
[313707716,1707600661471,-500.0,0.0003863,30]
[313707717,1707600661480,-500.0,0.0003863,30]
[313707718,1707600661490,-500.0,0.0003863,30]
[313707719,1707600661499,-500.0,0.0003863,30]
[313707720,1707600661508,-632.23,0.0003863,30]
[313707721,1707600661519,-500.0,0.0003863,30]
[313707722,1707600661529,-1130.03,0.0003863,30]
[313707723,1707600661538,-2012.7,0.0003863,30]
[313707724,1707600661551,-510.94127991,0.0003863,10]
[313707725,1707600661561,-500.0,0.0003863,30]
[313707726,1707600661571,-676.8,0.0003863,30]
[313707727,1707600661580,-500.0,0.0003863,30]
[313707728,1707600661591,-500.0,0.0003863,30]
[313707729,1707600661600,-500.0,0.0003863,30]
[313707730,1707600661610,-1151.47,0.0003863,5]
[313707731,1707600661619,-500.0,0.0003863,30]
[313707732,1707600661629,-500.0,0.0003863,30]
[313707733,1707600661638,-1433.03,0.0003863,30]
[313707734,1707600661648,-500.0,0.0003863,30]
[313707735,1707600661657,-508.77,0.0003863,30]
[313707736,1707600661667,-500.0,0.0003863,30]
[313707737,1707600661676,-510.28097347,0.0003863,30]
[313707738,1707600661686,-500.0,0.0003863,30]
[313707739,1707600661695,-996.61,0.0003863,30]
[313707740,1707600661705,-500.0,0.0003863,30]
[313707741,1707600661715,-1000.0,0.0003863,2]
[313707742,1707600661724,-500.0,0.0003863,30]
[313707743,1707600661733,-500.0,0.0003863,30]
[313707744,1707600661743,-1675.21,0.0003863,30]
[313707745,1707600661752,-535.04,0.0003863,30]
[313707746,1707600661762,-500.0,0.0003863,30]
[313707747,1707600661772,-555.70726869,0.0003863,30]
[313707748,1707600661781,-500.0,0.0003863,30]
[313707749,1707600661792,-500.0,0.0003863,30]
[313707750,1707600661803,-500.0,0.0003863,30]
[313707751,1707600661813,-174.80480563,0.0003863,30]
[313707752,1707600661822,-607.37,0.0003863,2]
[313707753,1707600661832,-500.0,0.0003863,30]
[313707754,1707600661842,-891.28,0.0003863,30]
[313707755,1707600661852,-786.75,0.0003863,30]
[313707756,1707600661862,-500.0,0.0003863,30]
[313707757,1707600661871,-500.0,0.0003863,30]
[313707758,1707600661881,-981.14,0.0003863,30]
[313707759,1707600661891,-1992.36,0.0003863,30]
[313707760,1707600661900,-1948.74,0.0003863,30]
[313707761,1707600661909,-1000.0,0.0003863,120]
[313707762,1707600661919,-500.0,0.0003863,30]
[313707763,1707600661928,-500.0,0.0003863,30]
[313707764,1707600661938,-1915.67,0.0003863,30]
[313707765,1707600661948,-500.0,0.0003863,30]
[313707766,1707600661958,-1571.66,0.0003863,30]
[313707767,1707600661968,-500.0,0.0003863,30]
[313707768,1707600661977,-500.0,0.0003863,30]
[313707769,1707600661987,-1093.86,0.0003863,30]
[313707770,1707600661997,-1107.45,0.0003863,30]
[313707771,1707600662010,-543.67196582,0.0003863,30]
[313707772,1707600662019,-212.90028577,0.0003863,30]
[313707773,1707600662029,-832.17,0.0003863,30]
[313707774,1707600662038,-500.0,0.0003863,30]
[313707775,1707600662048,-548.12,0.0003863,30]
[313707776,1707600662057,-670.83,0.0003863,30]
[313707777,1707600662170,-500.0,0.0003863,30]
[313707778,1707600662180,-2135.62,0.0003863,30]
[313707779,1707600662190,-576.13,0.0003863,30]
[313707780,1707600662199,-500.0,0.0003863,30]
[313707781,1707600662208,-508.53,0.0003863,30]
[313707782,1707600662218,-2075.8,0.0003863,30]
[313707783,1707600662228,-637.94,0.0003863,30]
[313707784,1707600662237,-500.0,0.0003863,30]
[313707785,1707600662250,-500.0,0.0003863,30]
[313707786,1707600662259,-500.0,0.0003863,30]
[313707787,1707600662270,-500.0,0.0003863,30]
[313707788,1707600662279,-500.0,0.0003863,30]
[313707789,1707600662288,-500.0,0.0003863,30]
[313707790,1707600662299,-1098.0,0.0003863,30]
[313707791,1707600662307,-952.74,0.0003863,30]
[313707792,1707600662317,-1381.72,0.0003863,30]
[313707793,1707600662327,-500.0,0.0003863,30]
[313707794,1707600662336,-984.205735,0.0003863,7]
[313707795,1707600662346,-500.0,0.0003863,30]
[313707796,1707600662356,-2884.06,0.0003863,30]
[313707797,1707600662367,-500.0,0.0003863,30]
[313707798,1707600662377,-746.11,0.0003863,30]
[313707799,1707600662387,-695.59,0.0003863,30]
[313707800,1707600662398,-984.205735,0.0003863,7]
[313707801,1707600662409,-857.11,0.0003863,30]
[313707802,1707600662419,-500.0,0.0003863,30]
[313707803,1707600662430,-500.0,0.0003863,30]
[313707804,1707600662440,-500.0,0.0003863,30]
[313707805,1707600662450,-292.71,0.0003863,30]
[313707806,1707600662460,-500.0,0.0003863,30]
[313707807,1707600662472,-500.0,0.0003863,30]
[313707808,1707600662482,-2276.89,0.0003863,30]
[313707809,1707600662492,-500.0,0.0003863,30]
[313707810,1707600662502,-775.52,0.0003863,30]
[313707811,1707600662512,-1726.49,0.0003863,30]
[313707812,1707600662522,-500.0,0.0003863,30]
[313707813,1707600662531,-500.0,0.0003863,30]
[313707814,1707600662541,-2588.33,0.0003863,30]
[313707815,1707600662552,-500.0,0.0003863,30]
[313707816,1707600662562,-1000.0,0.0003863,7]
[313707817,1707600662574,-500.0,0.0003863,30]
[313707818,1707600662583,-992.81,0.0003863,30]
[313707819,1707600662594,-735.3,0.0003863,30]
[313707820,1707600662604,-1365.09,0.0003863,30]
[313707821,1707600662616,-722.45,0.0003863,30]
[313707822,1707600662626,-500.0,0.0003863,30]
[313707823,1707600662636,-500.0,0.0003863,30]
[313707824,1707600662645,-558.14,0.0003863,30]
[313707825,1707600662658,-720.53,0.0003863,30]
[313707826,1707600662668,-500.0,0.0003863,30]
[313707827,1707600662679,-754.42,0.0003863,30]
[313707828,1707600662689,-500.0,0.0003863,30]
[313707829,1707600662699,-500.0,0.0003863,30]
[313707830,1707600662709,-785.13,0.0003863,30]
[313707831,1707600662719,-500.0,0.0003863,30]
[313707832,1707600662730,-500.0,0.0003863,30]
[313707833,1707600662740,-500.0,0.0003863,30]
[313707834,1707600662750,-563.06,0.0003863,30]
[313707835,1707600662760,-500.0,0.0003863,30]
[313707836,1707600662770,-856.56,0.0003863,30]
[313707837,1707600662780,-1575.36,0.0003863,30]
[313707838,1707600662790,-879.65,0.0003863,30]
[313707839,1707600662803,-151.61322298,0.0003863,30]
[313707840,1707600662813,-1156.76,0.0003863,30]
[313707841,1707600662823,-1679.59,0.0003863,30]
[313707842,1707600662833,-657.74,0.0003863,30]
[313707843,1707600662843,-500.0,0.0003863,30]
[313707844,1707600662854,-3208.55,0.0003863,30]
[313707845,1707600662864,-500.0,0.0003863,30]
[313707846,1707600662875,-1168.11,0.0003863,30]
[313707847,1707600662886,-679.77,0.0003863,30]
[313707848,1707600662897,-926.77,0.0003863,30]
[313707849,1707600662907,-2025.45,0.0003863,30]
[313707850,1707600662917,-500.0,0.0003863,30]
[313707851,1707600662928,-500.0,0.0003863,30]
[313707852,1707600662939,-1043.64,0.0003863,30]
[313707853,1707600662950,-500.0,0.0003863,30]
[313707854,1707600662960,-500.0,0.0003863,30]
[313707855,1707600662971,-552.04,0.0003863,30]
[313707856,1707600662981,-500.0,0.0003863,30]
[313707857,1707600662992,-500.0,0.0003863,30]
[313707858,1707600663003,-1154.1,0.0003863,30]
[313707859,1707600663013,-500.0,0.0003863,30]
[313707860,1707600663024,-500.0,0.0003863,30]
[313707861,1707600663034,-989.31,0.0003863,30]
[313707862,1707600663047,-505.23,0.0003863,30]
[313707863,1707600663057,-2027.94,0.0003863,30]
[313707864,1707600663067,-603.46,0.0003863,30]
[313707865,1707600663078,-500.0,0.0003863,30]
[313707866,1707600663088,-500.0,0.0003863,30]
[313707867,1707600663099,-761.12,0.0003863,30]
[313707868,1707600663109,-2891.76,0.0003863,30]
[313707869,1707600663120,-541.0,0.0003863,30]
[313707870,1707600663130,-500.0,0.0003863,30]
[313707871,1707600663140,-500.0,0.0003863,30]
[313707872,1707600663151,-500.0,0.0003863,30]
[313707873,1707600663161,-500.0,0.0003863,30]
[313707874,1707600663172,-361.05647437,0.0003863,30]
[313707875,1707600663182,-2770.93,0.0003863,30]
[313707876,1707600663196,-500.0,0.0003863,30]
[313707877,1707600663207,-500.0,0.0003863,30]
[313707878,1707600663217,-297.4335097,0.0003863,30]
[313707879,1707600663228,-500.0,0.0003863,30]
[313707880,1707600663242,-500.0,0.0003863,30]
[313707881,1707600663252,-1243.29,0.0003863,30]
[313707882,1707600663262,-500.0,0.0003863,30]
[313707883,1707600663274,-579.05,0.0003863,30]
[313707884,1707600663284,-500.0,0.0003863,30]
[313707885,1707600663297,-1118.7,0.0003863,30]
[313707886,1707600663308,-500.0,0.0003863,30]
[313707887,1707600663318,-500.0,0.0003863,30]
[313707888,1707600663329,-614.47,0.0003863,30]
[313707889,1707600663339,-500.0,0.0003863,30]
[313707890,1707600663350,-500.0,0.0003863,30]
[313707891,1707600663361,-500.0,0.0003863,30]
[313707892,1707600663371,-774.48,0.0003863,30]
[313707893,1707600663382,-833.42,0.0003863,30]
[313707894,1707600663393,-500.0,0.0003863,30]
[313707895,1707600663405,-500.0,0.0003863,30]
[313707896,1707600663416,-1903.16,0.0003863,30]
[313707897,1707600663426,-712.27,0.0003863,30]
[313707898,1707600663437,-500.0,0.0003863,30]
[313707899,1707600663449,-500.0,0.0003863,30]
[313707900,1707600663460,-776.19,0.0003863,30]
[313707901,1707600663471,-500.0,0.0003863,30]
[313707902,1707600663482,-593.48,0.0003863,30]
[313707903,1707600663492,-500.0,0.0003863,30]
[313707904,1707600663503,-500.0,0.0003863,30]
[313707905,1707600663514,-500.0,0.0003863,30]
[313707906,1707600663524,-793.0,0.0003863,30]
[313707907,1707600663535,-819.96,0.0003863,30]
[313707908,1707600663545,-500.0,0.0003863,30]
[313707909,1707600663560,-500.0,0.0003863,30]
[313707910,1707600663570,-500.0,0.0003863,30]
[313707911,1707600663580,-835.83,0.0003863,30]
[313707912,1707600663590,-500.0,0.0003863,30]
[313707913,1707600663600,-500.0,0.0003863,30]
[313707914,1707600663609,-500.0,0.0003863,30]
[313707915,1707600663620,-500.0,0.0003863,30]
[313707916,1707600663630,-521.81,0.0003863,30]
[313707917,1707600663640,-500.0,0.0003863,30]
[313707918,1707600663650,-1439.11,0.0003863,30]
[313707919,1707600663659,-666.09,0.0003863,30]
[313707920,1707600663670,-500.0,0.0003863,30]
[313707921,1707600663680,-1762.95,0.0003863,30]
[313707922,1707600663690,-500.0,0.0003863,30]
[313707923,1707600663700,-1507.87,0.0003863,30]
[313707924,1707600663710,-500.0,0.0003863,30]
[313707925,1707600663720,-1220.74,0.0003863,30]
[313707926,1707600663730,-446.4,0.0003863,30]
[313707927,1707600663739,-500.0,0.0003863,30]
[313707928,1707600663749,-500.0,0.0003863,30]
[313707929,1707600663759,-1071.55,0.0003863,30]
[313707930,1707600663770,-500.0,0.0003863,30]
[313707931,1707600663781,-1158.55,0.0003863,30]
[313707932,1707600663792,-500.0,0.0003863,30]
[313707933,1707600663806,-576.97,0.0003863,30]
[313707934,1707600663816,-500.0,0.0003863,5]
[313707935,1707600663826,-2544.48,0.0003863,30]
[313707936,1707600663836,-891.22,0.0003863,30]
[313707937,1707600663846,-526.32,0.0003863,30]
[313707938,1707600663855,-500.0,0.0003863,30]
[313707939,1707600663866,-1206.55,0.0003863,30]
[313707940,1707600663875,-777.02,0.0003863,30]
[313707941,1707600663885,-816.89,0.0003863,30]
[313707942,1707600663895,-500.0,0.0003863,30]
[313707943,1707600663905,-1195.77,0.0003863,30]
[313707944,1707600663915,-500.0,0.0003863,30]
[313707945,1707600663925,-500.0,0.0003863,30]
[313707946,1707600663934,-500.0,0.0003863,30]
[313707947,1707600663944,-714.43,0.0003863,30]
[313707948,1707600663954,-500.0,0.0003863,30]
[313707949,1707600663964,-2109.4,0.0003863,30]
[313707950,1707600663974,-518.1,0.0003863,30]
[313707951,1707600663984,-500.0,0.0003863,30]
[313707952,1707600663994,-500.0,0.0003863,30]
[313707953,1707600664004,-500.0,0.0003863,30]
[313707954,1707600664015,-150.51389881,0.00038647,7]
[313707955,1707600664024,-1017.6414,0.00038699,2]
[313707956,1707600664034,-300.0,0.000387,2]
[313707957,1707600664046,-6878.45374418,0.00038703,2]
[313707958,1707600664058,-1185.18693104,0.00038765,2]
[313707959,1707600664068,-150.0,0.00038789,2]
[313707960,1707600664077,-324868.80793551,0.000388,10]
[313707961,1707600664087,-21463.63473487,0.000388,4]
[313707962,1707600664098,-1000.0,0.000388,15]
[313707963,1707600664108,-211.0,0.000388,2]
[313707964,1707600664119,-40000.00892428,0.000388,5]
[313707965,1707600664131,-150.1,0.000388,2]
[313707966,1707600664142,-200.0,0.000388,13]
[313707967,1707600664151,-151.073889,0.000388,7]
[313707968,1707600664162,-153.98,0.000388,3]
[313707969,1707600664173,-153.98,0.000388,3]
[313707970,1707600664183,-303.739878,0.000388,6]
[313707971,1707600664194,-176.562956,0.000388,10]
[313707972,1707600664207,-984.205735,0.000388,7]
[313707973,1707600664217,-984.205735,0.000388,7]
[313707974,1707600664228,-557.74133779,0.0003885,7]
[313707975,1707600664241,-5004.7741993,0.00038853,2]
[313707976,1707600664253,-2894.5758376,0.00038853,2]
[313707977,1707600664264,-24111.293728,0.00038853,2]
[313707978,1707600664274,-31497.8864245,0.00038853,2]
[313707979,1707600664285,-6265.55,0.00038863,7]
[313707980,1707600664296,-6265.55,0.00038863,7]
[313707981,1707600664308,-3329.6232374,0.00038877,2]
[313707982,1707600664319,-150.0,0.00038879,2]
[313707983,1707600664330,-150.0,0.00038879,30]
[313707984,1707600664340,-10000.0,0.0003888,2]
[313707985,1707600664350,-54868.12937854,0.0003888,2]
[313707986,1707600664360,-984.205735,0.0003888,7]
[313707987,1707600664370,-984.205735,0.0003888,7]
[313707988,1707600664380,-3112.0,0.0003889,2]
[313707989,1707600664391,-152.0,0.00038896,4]
[313707990,1707600664401,-300.0,0.000389,2]
[313707991,1707600664411,-158.16523237,0.000389,4]
[313707992,1707600664421,-4077.31524969,0.000389,15]
[313707993,1707600664431,-300.0,0.000389,14]
[313707994,1707600664441,-153.7803214,0.00038901,7]
[313707995,1707600664451,-500.0,0.00038904,2]
[313707996,1707600664462,-500.0,0.00038904,30]
[313707997,1707600664472,-246.4917124,0.00038904,30]
[313707998,1707600664482,-500.0,0.00038904,30]
[313707999,1707600664493,-769.96,0.00038904,2]
[313708000,1707600664503,-649.69942544,0.00038904,30]
[313708001,1707600664513,-515.65645175,0.00038904,30]
[313708002,1707600664523,-500.0,0.00038904,30]
[313708003,1707600664533,-500.0,0.00038904,30]
[313708004,1707600664543,-500.0,0.00038904,30]
[313708005,1707600664554,-500.0,0.00038904,30]
[313708006,1707600664564,-517.07,0.00038904,30]
[313708007,1707600664575,-613.18,0.00038904,30]
[313708008,1707600664585,-281.13,0.00038904,30]
[313708009,1707600664829,-538.08,0.00038904,30]
[313708010,1707600664839,-500.0,0.00038904,30]
[313708011,1707600664849,-503.73,0.00038904,30]
[313708012,1707600664859,-500.0,0.00038904,30]
[313708013,1707600664869,-500.0,0.00038904,30]
[313708014,1707600664879,-500.0,0.00038904,30]
[313708015,1707600664890,-500.0,0.00038904,30]
[313708016,1707600664900,-500.0,0.00038904,30]
[313708017,1707600664911,-537.26,0.00038904,30]
[313708018,1707600664922,-563.32,0.00038904,30]
[313708019,1707600664932,-500.0,0.00038904,30]
[313708020,1707600664942,-827.96,0.00038904,30]
[313708021,1707600664951,-825.22,0.00038904,30]
[313708022,1707600664961,-500.0,0.00038904,30]
[313708023,1707600664970,-1010.79,0.00038904,30]
[313708024,1707600664980,-651.77,0.00038904,30]
[313708025,1707600664989,-500.0,0.00038904,30]
[313708026,1707600664999,-500.0,0.00038904,30]
[313708027,1707600665009,-589.3,0.00038904,30]
[313708028,1707600665019,-725.96,0.00038904,30]
[313708029,1707600665029,-592.47503441,0.00038904,30]
[313708030,1707600665039,-500.0,0.00038904,30]
[313708031,1707600665050,-500.0,0.00038904,30]
[313708032,1707600665060,-500.0,0.00038904,30]
[313708033,1707600665070,-500.0,0.00038904,30]
[313708034,1707600665079,-500.0,0.00038904,30]
[313708035,1707600665089,-500.0,0.00038904,30]
[313708036,1707600665099,-500.0,0.00038904,30]
[313708037,1707600665110,-500.0,0.00038904,30]
[313708038,1707600665120,-500.0,0.00038904,30]
[313708039,1707600665129,-500.0,0.00038904,30]
[313708040,1707600665139,-509.21,0.00038904,30]
[313708041,1707600665149,-500.0,0.00038904,30]
[313708042,1707600665160,-682.38,0.00038904,30]
[313708043,1707600665169,-500.0,0.00038904,30]
[313708044,1707600665180,-500.0,0.00038904,30]
[313708045,1707600665190,-500.0,0.00038904,30]
[313708046,1707600665200,-634.59,0.00038904,30]
[313708047,1707600665210,-500.0,0.00038904,30]
[313708048,1707600665220,-520.68,0.00038904,30]
[313708049,1707600665230,-500.0,0.00038904,30]
[313708050,1707600665240,-500.0,0.00038904,30]
[313708051,1707600665254,-500.0,0.00038904,30]
[313708052,1707600665264,-500.0,0.00038904,30]
[313708053,1707600665274,-500.0,0.00038904,30]
[313708054,1707600665284,-500.0,0.00038904,30]
[313708055,1707600665295,-500.0,0.00038904,30]
[313708056,1707600665309,-619.45954403,0.00038904,30]
[313708057,1707600665319,-500.0,0.00038904,30]
[313708058,1707600665330,-500.0,0.00038904,30]
[313708059,1707600665341,-500.0,0.00038904,30]
[313708060,1707600665350,-500.0,0.00038904,30]
[313708061,1707600665360,-500.0,0.00038904,30]
[313708062,1707600665371,-500.0,0.00038904,30]
[313708063,1707600665381,-500.0,0.00038904,30]
[313708064,1707600665391,-500.0,0.00038904,30]
[313708065,1707600665401,-500.0,0.00038904,30]
[313708066,1707600665412,-500.0,0.00038904,30]
[313708067,1707600665421,-500.0,0.00038904,30]
[313708068,1707600665431,-1039.53,0.00038904,30]
[313708069,1707600665441,-528.45,0.00038904,30]
[313708070,1707600665451,-802.2,0.00038904,30]
[313708071,1707600665461,-678.93,0.00038904,30]
[313708072,1707600665471,-500.0,0.00038904,30]
[313708073,1707600665481,-500.0,0.00038904,30]
[313708074,1707600665491,-511.35,0.00038904,30]
[313708075,1707600665501,-500.0,0.00038904,30]
[313708076,1707600665511,-556.28,0.00038904,30]
[313708077,1707600665520,-500.0,0.00038904,30]
[313708078,1707600665530,-500.0,0.00038904,30]
[313708079,1707600665540,-500.0,0.00038904,30]
[313708080,1707600665552,-619.38,0.00038904,30]
[313708081,1707600665562,-500.0,0.00038904,30]
[313708082,1707600665572,-500.0,0.00038904,30]
[313708083,1707600665581,-500.0,0.00038904,30]
[313708084,1707600665591,-500.0,0.00038904,30]
[313708085,1707600665601,-500.0,0.00038904,30]
[313708086,1707600665611,-500.0,0.00038904,30]
[313708087,1707600665620,-535.96,0.00038904,30]
[313708088,1707600665630,-520.36,0.00038904,30]
[313708089,1707600665640,-650.62,0.00038904,30]
[313708090,1707600665649,-500.0,0.00038904,30]
[313708091,1707600665659,-500.0,0.00038904,30]
[313708092,1707600665668,-500.0,0.00038904,30]
[313708093,1707600665678,-500.0,0.00038904,30]
[313708094,1707600665687,-500.0,0.00038904,30]
[313708095,1707600665696,-234.45366131,0.00038904,30]
[313708096,1707600665705,-500.0,0.00038904,30]
[313708097,1707600665714,-500.0,0.00038904,30]
[313708098,1707600665724,-500.0,0.00038904,30]
[313708099,1707600665733,-500.0,0.00038904,30]
[313708100,1707600665742,-500.0,0.00038904,30]
[313708101,1707600665752,-500.0,0.00038904,30]
[313708102,1707600665762,-368.37,0.00038904,30]
[313708103,1707600665771,-500.0,0.00038904,30]
[313708104,1707600665781,-500.0,0.00038904,30]
[313708105,1707600665790,-752.52,0.00038904,30]
[313708106,1707600665802,-500.0,0.00038904,30]
[313708107,1707600665811,-500.0,0.00038904,30]
[313708108,1707600665821,-500.0,0.00038904,30]
[313708109,1707600665830,-500.0,0.00038904,30]
[313708110,1707600665840,-740.72,0.00038904,30]
[313708111,1707600665850,-500.0,0.00038904,30]
[313708112,1707600665860,-500.0,0.00038904,30]
[313708113,1707600665871,-500.0,0.00038904,30]
[313708114,1707600665880,-500.0,0.00038904,30]
[313708115,1707600665890,-651.16,0.00038904,30]
[313708116,1707600665900,-500.0,0.00038904,30]
[313708117,1707600665910,-500.0,0.00038904,30]
[313708118,1707600665920,-835.86,0.00038904,30]
[313708119,1707600665929,-627.83,0.00038904,30]
[313708120,1707600665939,-519.69,0.00038904,30]
[313708121,1707600665948,-500.0,0.00038904,30]
[313708122,1707600665958,-500.0,0.00038904,30]
[313708123,1707600665968,-229.26304662,0.00038904,30]
[313708124,1707600665978,-500.0,0.00038904,30]
[313708125,1707600665988,-500.0,0.00038904,30]
[313708126,1707600665998,-500.0,0.00038904,30]
[313708127,1707600666008,-528.21747458,0.00038904,30]
[313708128,1707600666019,-646.86,0.00038904,30]
[313708129,1707600666029,-500.0,0.00038904,30]
[313708130,1707600666039,-1073.3,0.00038904,30]
[313708131,1707600666050,-500.0,0.00038904,30]
[313708132,1707600666059,-500.0,0.00038904,30]
[313708133,1707600666069,-547.42745993,0.00038904,5]
[313708134,1707600666080,-822.77,0.00038904,30]
[313708135,1707600666089,-500.0,0.00038904,30]